bitfinex/quotes_BTCUSD_20241028
["timestamp","ask_amount","ask_price","bid_price","bid_amount"]
[1730084375515,0.004001,67813.0,67812.0,0.33758056]
[1730084379231,0.002001,67813.0,67812.0,0.33758056]
[1730084379894,0.001001,67813.0,67812.0,0.33758056]
[1730084380305,1e-06,67813.0,67812.0,0.33758056]
[1730084381391,0.002001,67813.0,67812.0,0.33758056]
[1730084381606,0.003001,67813.0,67812.0,0.33758056]
[1730084384685,0.00277792,67813.0,67812.0,0.33758056]
[1730084385575,0.147448,67821.0,67817.0,0.147454]
[1730084385782,0.19170149,67821.0,67817.0,0.147454]
[1730084385990,0.147449,67820.0,67817.0,0.147454]
[1730084388171,0.152449,67820.0,67817.0,0.148454]
[1730084388400,0.158449,67820.0,67817.0,0.149454]
[1730084392552,0.011,67820.0,67818.0,0.294906]
[1730084392772,0.011,67820.0,67819.0,0.147451]
[1730084392979,0.011,67820.0,67819.0,0.02562191]
[1730084393721,0.006,67820.0,67819.0,0.02562191]
[1730084394136,0.012,67820.0,67819.0,0.02562191]
[1730084394352,0.006,67820.0,67819.0,0.02562191]
[1730084394565,0.007,67820.0,67819.0,0.02562191]
[1730084394821,0.014,67820.0,67819.0,0.02662191]
[1730084395162,0.022822,67820.0,67819.0,0.02762191]
[1730084396881,0.170271,67820.0,67819.0,0.02762191]
[1730084397102,0.022822,67820.0,67819.0,0.02762191]
[1730084397523,0.170271,67820.0,67819.0,0.02762191]
[1730084399097,0.21451295,67820.0,67819.0,0.02762191]
[1730084399304,0.170271,67820.0,67819.0,0.02762191]
[1730084399682,0.21451295,67820.0,67819.0,0.02762191]
[1730084400360,0.170271,67820.0,67819.0,0.02762191]
[1730084401423,0.21451295,67820.0,67819.0,0.02762191]
[1730084402248,0.23663393,67820.0,67819.0,0.02762191]
[1730084402393,0.170271,67820.0,67819.0,0.02762191]
[1730084402605,0.26250887,67820.0,67819.0,0.02762191]
[1730084404862,0.3288718,67820.0,67819.0,0.02762191]
[1730084405491,0.59305203,67820.0,67819.0,0.02762191]
[1730084405696,0.70365692,67820.0,67819.0,0.02762191]
[1730084406106,0.59305203,67820.0,67819.0,0.02762191]
[1730084406309,0.70365692,67820.0,67819.0,0.02762191]
[1730084406666,0.59305203,67820.0,67819.0,0.02762191]
[1730084406871,0.60412219,67820.0,67819.0,0.02762191]
[1730084407488,0.71474462,67820.0,67819.0,0.02762191]
[1730084408321,0.60038008,67820.0,67819.0,0.02762191]
[1730084408661,0.69261795,67820.0,67819.0,0.02762191]
[1730084408866,0.69261918,67820.0,67819.0,0.02762191]
[1730084409112,0.68154902,67820.0,67819.0,0.02762191]
[1730084409527,0.59305203,67820.0,67819.0,0.02762191]
[1730084409940,0.68154892,67820.0,67819.0,0.02762191]
[1730084411233,0.59305203,67820.0,67819.0,0.02762191]
[1730084411471,0.44120887,67820.0,67819.0,0.02762191]
[1730084411680,0.68177658,67820.0,67819.0,0.02762191]
[1730084413993,0.25876789,67820.0,67819.0,0.02762191]
[1730084414219,0.08919922,67820.0,67819.0,0.02762191]
[1730084414432,0.23664822,67820.0,67819.0,0.02762191]
[1730084417833,0.2366004,67820.0,67819.0,0.02762191]
[1730084419209,0.3266004,67820.0,67819.0,0.02762191]
[1730084420682,0.1791514,67820.0,67819.0,0.02762191]
[1730084420886,0.2366004,67820.0,67819.0,0.02762191]
[1730084421504,0.0891514,67820.0,67819.0,0.02762191]
[1730084421707,0.0891514,67820.0,67819.0,0.17507291]
[1730084421921,0.02277418,67820.0,67819.0,0.17507291]
[1730084422158,0.06703803,67820.0,67819.0,0.17507291]
[1730084423834,0.06703707,67820.0,67819.0,0.17507291]
[1730084425311,0.06703707,67820.0,67819.0,0.02762191]
[1730084428309,0.02277418,67820.0,67819.0,0.17507291]
[1730084428517,0.06703597,67820.0,67819.0,0.02762191]
[1730084430783,0.06284838,67820.0,67819.0,0.02762191]
[1730084431205,0.06284838,67820.0,67819.0,0.02926591]
[1730084432064,0.21029738,67820.0,67819.0,0.02926591]
[1730084434285,0.21029738,67820.0,67819.0,0.02816529]
[1730084435383,0.06284838,67820.0,67819.0,0.02816529]
[1730084436695,0.16603559,67820.0,67819.0,0.02816529]
[1730084436919,0.21029738,67820.0,67819.0,0.02816529]
[1730084437137,0.01858659,67820.0,67819.0,0.17561629]
[1730084437355,0.01858659,67820.0,67819.0,0.02816529]
[1730084437574,0.06284838,67820.0,67819.0,0.02816529]
[1730084437799,0.06284838,67820.0,67819.0,0.17561629]
[1730084437800,0.01858659,67820.0,67819.0,0.17561629]
[1730084438262,0.01858659,67820.0,67819.0,0.02816529]
[1730084438479,0.01858659,67820.0,67819.0,0.17561629]
[1730084441796,0.01858659,67820.0,67819.0,0.02816529]
[1730084441990,0.21029586,67820.0,67819.0,0.02816529]
[1730084442449,0.06284686,67820.0,67819.0,0.02816529]
[1730084442652,0.21029586,67820.0,67819.0,0.02816529]
[1730084442862,0.16603559,67820.0,67819.0,0.02816529]
[1730084443105,0.21029628,67820.0,67819.0,0.02816529]
[1730084443345,0.16603559,67820.0,67819.0,0.02816529]
[1730084445339,0.01858659,67820.0,67819.0,0.02816529]
[1730084445547,0.06284717,67820.0,67819.0,0.02816529]
[1730084445759,0.01858659,67820.0,67819.0,0.02816529]
[1730084446000,0.06284708,67820.0,67819.0,0.02816529]
[1730084446217,0.06284687,67820.0,67819.0,0.02816529]
[1730084446642,0.01858659,67820.0,67819.0,0.02816529]
[1730084447604,0.0628469,67820.0,67819.0,0.02816529]
[1730084448523,0.06284654,67820.0,67819.0,0.02816529]
[1730084448959,0.06284654,67820.0,67819.0,0.17561629]
[1730084449389,0.06284654,67820.0,67819.0,0.02816529]
[1730084449604,0.01858659,67820.0,67819.0,0.17561629]
[1730084449814,0.01158659,67820.0,67819.0,0.17461629]
[1730084450233,0.05984654,67820.0,67819.0,0.17461629]
[1730084450879,0.04908195,67820.0,67819.0,0.17361629]
[1730084451106,0.05308195,67820.0,67819.0,0.02616529]
[1730084452173,0.05308401,67820.0,67819.0,0.02616529]
[1730084452388,0.008822,67820.0,67819.0,0.02616529]
[1730084453510,0.156271,67820.0,67819.0,0.02616529]
[1730084453725,0.22266092,67820.0,67819.0,0.02616529]
[1730084453863,0.156271,67820.0,67819.0,0.02616529]
[1730084454078,0.22266092,67820.0,67819.0,0.02616529]
[1730084454460,0.29966092,67820.0,67819.0,0.02616529]
[1730084454683,0.15221192,67820.0,67819.0,0.02616529]
[1730084455081,0.29966092,67820.0,67819.0,0.02616529]
[1730084455493,0.233271,67820.0,67819.0,0.02616529]
[1730084456920,0.29968587,67820.0,67819.0,0.02616529]
[1730084457562,0.233271,67820.0,67819.0,0.02616529]
[1730084458121,0.38464945,67820.0,67819.0,0.02616529]
[1730084458326,0.233271,67820.0,67819.0,0.02616529]
[1730084458990,0.38476285,67820.0,67819.0,0.02616529]
[1730084459213,0.38476164,67820.0,67819.0,0.02616529]
[1730084460575,0.38483108,67820.0,67819.0,0.02616529]
[1730084460777,0.38481986,67820.0,67819.0,0.02616529]
[1730084461221,0.47704089,67820.0,67819.0,0.02616529]
[1730084461412,0.56560965,67820.0,67819.0,0.02616529]
[1730084461624,0.74884752,67820.0,67819.0,0.02616529]
[1730084461833,0.66027876,67820.0,67819.0,0.02616529]
[1730084462071,0.56804089,67820.0,67819.0,0.02616529]
[1730084462575,0.70089404,67820.0,67819.0,0.02616529]
[1730084462795,0.56404089,67820.0,67819.0,0.02616529]
[1730084463007,0.79913191,67820.0,67819.0,0.02716529]
[1730084463222,0.91678257,67820.0,67819.0,0.02716529]
[1730084463426,1.0661412,67820.0,67819.0,0.02716529]
[1730084463680,1.0661413,67820.0,67819.0,0.02716529]
[1730084463911,1.12513928,67820.0,67819.0,0.02716529]
[1730084464118,1.12513928,67820.0,67819.0,0.02616529]
[1730084464119,1.11113928,67820.0,67819.0,0.02616529]
[1730084464329,0.96178055,67820.0,67819.0,0.02616529]
[1730084464539,1.14107007,67820.0,67819.0,0.02816529]
[1730084464776,1.07001842,67820.0,67819.0,0.02716529]
[1730084464988,0.96378055,67820.0,67819.0,0.02616529]
[1730084465222,1.12707453,67820.0,67819.0,0.00146419]
[1730084465457,0.98875027,67820.0,67819.0,0.00146419]
[1730084465701,1.23020409,67820.0,67819.0,0.02941781]
[1730084465929,0.98875027,67820.0,67819.0,0.02941781]
[1730084466180,1.13796622,67820.0,67819.0,0.02941781]
[1730084466403,0.98875027,67820.0,67819.0,0.02941781]
[1730084467047,0.80227453,67820.0,67819.0,0.02941781]
[1730084467260,0.92775229,67820.0,67819.0,0.02941781]
[1730084467500,1.06029018,67820.0,67819.0,0.02941781]
[1730084468538,0.74327655,67820.0,67819.0,0.02941781]
[1730084468765,0.92775229,67820.0,67819.0,0.02941781]
[1730084469499,1.0782561,67820.0,67819.0,0.02941781]
[1730084469901,1.0802561,67820.0,67819.0,0.02941781]
[1730084474587,1.0782561,67820.0,67819.0,0.02941781]
[1730084474783,1.0775346,67820.0,67819.0,0.02941781]
[1730084475919,1.10063326,67820.0,67819.0,0.02941781]
[1730084476661,1.10263326,67820.0,67819.0,0.02941781]
[1730084479034,0.91615752,67820.0,67819.0,0.02941781]
[1730084479229,1.10063326,67820.0,67819.0,0.02941781]
[1730084480437,1.10263326,67820.0,67819.0,0.02941781]
[1730084481069,1.10063326,67820.0,67819.0,0.02941781]
[1730084482416,1.10263326,67820.0,67819.0,0.02941781]
[1730084484204,1.10220648,67820.0,67819.0,0.02941781]
[1730084485632,1.25760648,67820.0,67819.0,0.02941781]
[1730084485841,1.10220648,67820.0,67819.0,0.02941781]
[1730084486043,0.91573074,67820.0,67819.0,0.02941781]
[1730084486244,1.10020648,67820.0,67819.0,0.02941781]
[1730084487514,0.76522693,67820.0,67819.0,0.02941781]
[1730084487734,0.96777068,67820.0,67819.0,0.02941781]
[1730084487929,0.8574648,67820.0,67819.0,0.02941781]
[1730084488140,0.83436614,67820.0,67819.0,0.02941781]
[1730084488681,0.83462576,67820.0,67819.0,0.02941781]
[1730084488886,0.92287412,67820.0,67819.0,0.02941781]
[1730084489095,0.73963625,67820.0,67819.0,0.02941781]
[1730084489309,0.32039449,67820.0,67819.0,0.02941781]
[1730084489619,0.22039515,67820.0,67819.0,0.02941781]
[1730084489834,0.176271,67820.0,67819.0,0.02941781]
[1730084490285,0.162271,67820.0,67819.0,0.02941781]
[1730084490509,0.20639515,67820.0,67819.0,0.02941781]
[1730084490714,0.20639515,67820.0,67819.0,0.03041781]
[1730084490715,0.22032142,67820.0,67819.0,0.03041781]
[1730084491137,0.20632142,67820.0,67819.0,0.03041781]
[1730084491354,0.22032142,67820.0,67819.0,0.03141781]
[1730084491803,0.17619727,67820.0,67819.0,0.03141781]
[1730084492003,0.16219727,67820.0,67819.0,0.03041781]
[1730084492204,0.20632142,67820.0,67819.0,0.03041781]
[1730084492480,0.22032142,67820.0,67819.0,0.03141781]
[1730084493146,0.48512419,67820.0,67819.0,0.03141781]
[1730084493385,0.59949703,67820.0,67819.0,0.03141781]
[1730084494253,0.6917349,67820.0,67819.0,0.03141781]
[1730084494460,0.59949703,67820.0,67819.0,0.03141781]
[1730084495513,0.51122559,67820.0,67819.0,0.03141781]
[1730084495729,0.56354599,67820.0,67819.0,0.03141781]
[1730084496130,0.56354617,67820.0,67819.0,0.03141781]
[1730084496365,0.47524734,67820.0,67819.0,0.03141781]
[1730084497528,0.58558664,67820.0,67819.0,0.03141781]
[1730084497953,0.58562459,67820.0,67819.0,0.03141781]
[1730084499203,0.47522189,67820.0,67819.0,0.03141781]
[1730084499497,0.58565488,67820.0,67819.0,0.03141781]
[1730084499710,0.47522189,67820.0,67819.0,0.03141781]
[1730084500637,0.6257257,67820.0,67819.0,0.03141781]
[1730084500871,0.47522189,67820.0,67819.0,0.03141781]
[1730084502758,0.47538958,67820.0,67819.0,0.03141781]
[1730084509645,0.56762745,67820.0,67819.0,0.03141781]
[1730084509860,0.70032553,67820.0,67819.0,0.03141781]
[1730084510063,0.56762745,67820.0,67819.0,0.03141781]
[1730084511846,0.47538958,67820.0,67819.0,0.03141781]
[1730084512056,0.60809415,67820.0,67819.0,0.03141781]
[1730084513127,0.47538958,67820.0,67819.0,0.03141781]
[1730084513325,0.60809415,67820.0,67819.0,0.03141781]
[1730084513784,0.60810853,67820.0,67819.0,0.03141781]
[1730084514624,0.47538958,67820.0,67819.0,0.03141781]
[1730084514832,0.60810853,67820.0,67819.0,0.03141781]
[1730084515658,0.45760472,67820.0,67819.0,0.03141781]
[1730084515897,0.32488577,67820.0,67819.0,0.03141781]
[1730084516259,0.41712364,67820.0,67819.0,0.03141781]
[1730084516461,0.41778546,67820.0,67819.0,0.03141781]
[1730084516860,0.41779374,67820.0,67819.0,0.03141781]
[1730084520733,0.41745375,67820.0,67819.0,0.03141781]
[1730084531524,0.55017059,67820.0,67819.0,0.03141781]
[1730084531969,0.41745375,67820.0,67819.0,0.03141781]
[1730084532426,0.55017059,67820.0,67819.0,0.03141781]
[1730084533536,0.41745375,67820.0,67819.0,0.03141781]
[1730084534426,0.55029247,67820.0,67819.0,0.03141781]
[1730084534925,0.41745375,67820.0,67819.0,0.03141781]
[1730084537202,0.55029735,67820.0,67819.0,0.03141781]
[1730084537446,0.41745375,67820.0,67819.0,0.03141781]
[1730084539273,0.41816189,67820.0,67819.0,0.03141781]
[1730084543111,0.55100756,67820.0,67819.0,0.03141781]
[1730084548923,0.41816189,67820.0,67819.0,0.03141781]
[1730084549533,0.5512889,67820.0,67819.0,0.03141781]
[1730084549901,0.41844613,67820.0,67819.0,0.03141781]
[1730084550453,0.5512889,67820.0,67819.0,0.03141781]
[1730084551486,0.41844613,67820.0,67819.0,0.03141781]
[1730084555104,0.41852207,67820.0,67819.0,0.03141781]
[1730084556883,0.55136069,67820.0,67819.0,0.03141781]
[1730084557877,0.41852207,67820.0,67819.0,0.03141781]
[1730084559679,0.55136069,67820.0,67819.0,0.03141781]
[1730084559906,0.40130188,67820.0,67819.0,0.03141781]
[1730084560107,0.55150778,67820.0,67819.0,0.03141781]
[1730084560308,0.41864084,67820.0,67819.0,0.03141781]
[1730084563174,0.66138252,67820.0,67819.0,0.03141781]
[1730084563395,0.90888633,67820.0,67819.0,0.03141781]
[1730084564236,0.75838252,67820.0,67819.0,0.03141781]
[1730084564441,0.83688252,67820.0,67819.0,0.03141781]
[1730084564677,0.83731632,67820.0,67819.0,0.03141781]
[1730084565109,0.83729032,67820.0,67819.0,0.03141781]
[1730084566286,1.0867738,67820.0,67819.0,0.03141781]
[1730084566506,1.23727761,67820.0,67819.0,0.03141781]
[1730084566712,1.23725915,67820.0,67819.0,0.03141781]
[1730084568338,1.08675534,67820.0,67819.0,0.03141781]
[1730084570478,0.93729032,67820.0,67819.0,0.03141781]
[1730084570692,0.93729032,67820.0,67819.0,0.02921657]
[1730084571958,0.75281458,67820.0,67819.0,0.02921657]
[1730084572174,0.93729032,67820.0,67819.0,0.02921657]
[1730084573066,0.84505245,67820.0,67819.0,0.02921657]
[1730084574819,0.17936177,67820.0,67819.0,0.02921657]
[1730084575039,0.02874827,67820.0,67819.0,0.25816757]
[1730084575283,0.02874827,67820.0,67819.0,0.52012]
[1730084575508,0.02874827,67820.0,67819.0,0.54217138]
[1730084575715,0.001644,67824.0,67823.0,0.147442]
[1730084575935,0.001644,67824.0,67823.0,0.50161705]
[1730084577896,0.001644,67824.0,67823.0,0.50261705]
[1730084578975,0.001644,67824.0,67823.0,0.50561705]
[1730084582615,0.001644,67824.0,67823.0,0.82495492]
[1730084582831,0.001644,67824.0,67823.0,0.83195492]
[1730084583058,0.001644,67824.0,67823.0,0.73971705]
[1730084583887,0.001644,67824.0,67823.0,0.73671705]
[1730084584117,0.001644,67824.0,67823.0,0.64547918]
[1730084584402,0.001644,67824.0,67823.0,0.64047918]
[1730084584635,0.001644,67824.0,67823.0,0.73171705]
[1730084584860,0.001644,67824.0,67823.0,0.72871705]
[1730084585057,0.001644,67824.0,67823.0,0.72971705]
[1730084585271,0.001644,67824.0,67823.0,0.73271705]
[1730084585497,0.001644,67824.0,67823.0,0.73071705]
[1730084585990,0.001644,67824.0,67823.0,0.73171705]
[1730084586859,0.001644,67824.0,67823.0,0.73671705]
[1730084587334,0.001644,67824.0,67823.0,0.73871705]
[1730084587541,0.001644,67824.0,67823.0,0.83095492]
[1730084587761,0.001644,67824.0,67823.0,0.74871705]
[1730084590627,0.001644,67824.0,67823.0,0.74671705]
[1730084590861,0.001644,67824.0,67823.0,0.64447918]
[1730084591075,0.001644,67824.0,67823.0,0.73671705]
[1730084591483,0.001644,67824.0,67823.0,0.73871705]
[1730084591706,0.001644,67824.0,67823.0,0.73171705]
[1730084592181,0.001644,67824.0,67823.0,0.63947918]
[1730084593617,0.001644,67824.0,67823.0,0.63747918]
[1730084593816,0.001644,67824.0,67823.0,0.64447918]
[1730084594047,0.001644,67824.0,67823.0,0.63847918]
[1730084594215,0.001644,67824.0,67823.0,0.63647918]
[1730084594416,0.001644,67824.0,67823.0,0.77820035]
[1730084595053,0.001644,67824.0,67823.0,0.78020035]
[1730084595633,0.001644,67824.0,67823.0,0.64647918]
[1730084595802,0.001644,67824.0,67823.0,0.65647918]
[1730084603054,0.001644,67824.0,67823.0,0.65547918]
[1730084603438,0.001644,67824.0,67823.0,0.65647918]
[1730084604227,0.001644,67824.0,67823.0,0.65447918]
[1730084604427,0.001644,67824.0,67823.0,0.65647918]
[1730084609648,0.001644,67824.0,67823.0,0.70239765]
[1730084609857,0.001644,67824.0,67823.0,0.70039765]
[1730084610069,0.21984948,67842.0,67841.0,0.038]
[1730084610309,0.001646,67845.0,67844.0,0.162396]
[1730084610536,0.001646,67845.0,67844.0,0.33877329]
[1730084610745,0.001646,67845.0,67844.0,0.36177329]
[1730084612292,0.001646,67845.0,67844.0,0.36377329]
[1730084613645,0.001646,67845.0,67844.0,0.36477329]
[1730084614694,0.001646,67845.0,67844.0,0.4568597]
[1730084627152,0.001646,67845.0,67844.0,0.36477329]
[1730084627354,0.001646,67845.0,67844.0,0.4568597]
[1730084627782,0.001646,67845.0,67844.0,0.36477329]
[1730084627985,0.001646,67845.0,67844.0,0.4568597]
[1730084636671,0.001646,67845.0,67844.0,0.36477329]
[1730084641034,0.001646,67845.0,67844.0,0.5568597]
[1730084641478,0.001646,67845.0,67844.0,0.64894611]
[1730084642581,0.001646,67845.0,67844.0,0.65094611]
[1730084643227,0.001646,67845.0,67844.0,0.74704611]
[1730084643878,0.001646,67845.0,67844.0,0.74504611]
[1730084644570,0.001646,67845.0,67844.0,0.6529597]
[1730084645720,0.001646,67845.0,67844.0,0.6549597]
[1730084646182,0.001646,67845.0,67844.0,0.74704611]
[1730084648573,0.001646,67845.0,67844.0,0.74504611]
[1730084649012,0.001646,67845.0,67844.0,0.74704611]
[1730084649242,0.001646,67845.0,67844.0,0.75204611]
[1730084649462,0.001646,67845.0,67844.0,0.98075166]
[1730084649680,0.001646,67845.0,67844.0,0.98074752]
[1730084649900,0.001646,67845.0,67844.0,0.91465775]
[1730084650107,0.001646,67845.0,67844.0,0.99105775]
[1730084650318,0.001646,67845.0,67844.0,1.12609807]
[1730084650572,0.001646,67845.0,67844.0,0.99205775]
[1730084651021,0.001646,67845.0,67844.0,1.08017745]
[1730084651263,0.001646,67845.0,67844.0,1.14005633]
[1730084651501,0.001646,67845.0,67844.0,1.04996992]
[1730084651730,0.001646,67845.0,67844.0,1.14005633]
[1730084652179,0.001646,67845.0,67844.0,1.04996992]
[1730084653085,0.001644,67857.0,67856.0,0.28737]
[1730084653275,0.001644,67857.0,67856.0,0.64559737]
[1730084653490,0.001644,67857.0,67856.0,0.65059737]
[1730084653718,0.001644,67857.0,67856.0,0.65259737]
[1730084655319,0.001644,67857.0,67856.0,0.65459737]
[1730084655967,0.001644,67857.0,67856.0,0.65559737]
[1730084656641,0.001644,67857.0,67856.0,0.65259737]
[1730084656847,0.001644,67857.0,67856.0,0.65559737]
[1730084657520,0.001644,67857.0,67856.0,0.66459737]
[1730084657754,0.001644,67857.0,67856.0,0.66559737]
[1730084658257,0.001644,67857.0,67856.0,1.06164685]
[1730084658478,0.00167,67867.0,67866.0,0.66472182]
[1730084658690,0.00167,67867.0,67866.0,0.84110628]
[1730084659135,0.00167,67867.0,67866.0,0.88791675]
[1730084659348,0.00167,67867.0,67866.0,0.93186346]
[1730084659599,0.00167,67867.0,67866.0,0.88791675]
[1730084660029,0.00167,67867.0,67866.0,0.8523857]
[1730084660703,0.00167,67867.0,67866.0,0.8533857]
[1730084660925,0.00167,67867.0,67866.0,0.89659429]
[1730084661398,0.00167,67867.0,67866.0,0.8533857]
[1730084661620,0.00167,67867.0,67866.0,0.89659429]
[1730084661842,0.00167,67867.0,67866.0,0.89859429]
[1730084662051,0.00167,67867.0,67866.0,0.8553857]
[1730084662308,0.00167,67867.0,67866.0,0.89859429]
[1730084662523,0.001644,67870.0,67866.0,0.89859429]
[1730084662524,0.001644,67870.0,67869.0,0.57881482]
[1730084662756,0.001644,67870.0,67869.0,0.75398025]
[1730084662969,0.001644,67870.0,67869.0,0.79718884]
[1730084663858,0.001644,67870.0,67869.0,0.79818884]
[1730084664991,0.001644,67870.0,67869.0,0.88268884]
[1730084665206,0.00167,67881.0,67880.0,0.66509082]
[1730084665412,0.00167,67881.0,67880.0,0.84036546]
[1730084665642,0.00167,67881.0,67880.0,0.88357405]
[1730084666134,0.00167,67881.0,67880.0,0.84036546]
[1730084666587,0.0776,67908.0,67891.0,0.169294]
[1730084666820,0.0776,67908.0,67891.0,0.65174146]
[1730084667036,0.0776,67908.0,67891.0,0.66174146]
[1730084667483,0.0776,67908.0,67891.0,0.74424146]
[1730084667695,0.0776,67908.0,67891.0,0.84034146]
[1730084667906,0.0776,67908.0,67891.0,0.74825505]
[1730084669050,0.21984948,67910.0,67891.0,0.47756864]
[1730084669051,0.0776,67895.0,67891.0,0.47756864]
[1730084669277,0.0776,67895.0,67891.0,0.56965505]
[1730084669501,0.0776,67895.0,67891.0,0.56065505]
[1730084670199,0.0776,67895.0,67891.0,0.55765505]
[1730084670417,0.0776,67895.0,67891.0,0.56765505]
[1730084670623,0.0776,67895.0,67891.0,0.60900908]
[1730084670830,0.0776,67895.0,67891.0,0.61100908]
[1730084671689,0.0776,67895.0,67891.0,0.61400908]
[1730084671899,0.0776,67895.0,67891.0,0.61200908]
[1730084672101,0.0776,67895.0,67891.0,0.61100908]
[1730084672308,0.0761,67900.0,67891.0,0.61300908]
[1730084672517,0.0761,67900.0,67891.0,0.61400908]
[1730084672740,0.0761,67900.0,67891.0,0.61200908]
[1730084672950,0.0761,67900.0,67891.0,0.61400908]
[1730084673599,0.0761,67900.0,67891.0,0.61200908]
[1730084675101,0.0761,67900.0,67891.0,0.61400908]
[1730084676192,0.0817,67904.0,67891.0,0.61400908]
[1730084685193,0.0817,67904.0,67898.0,0.269279]
[1730084685434,0.0817,67904.0,67898.0,0.60230919]
[1730084686324,0.0817,67904.0,67898.0,0.60430919]
[1730084686787,0.097,67907.0,67898.0,0.60430919]
[1730084687879,0.097,67907.0,67898.0,0.60530919]
[1730084688379,0.00167,67913.0,67898.0,1.06529911]
[1730084688620,0.00167,67913.0,67898.0,0.92544963]
[1730084688828,0.010709,67899.0,67898.0,0.92644963]
[1730084689284,0.010709,67899.0,67898.0,0.92544963]
[1730084689491,0.010709,67899.0,67898.0,0.92844963]
[1730084689924,0.010709,67899.0,67898.0,0.92444963]
[1730084690156,0.010709,67899.0,67898.0,0.93551104]
[1730084690381,0.010709,67899.0,67898.0,0.93751104]
[1730084690619,0.010709,67899.0,67898.0,0.58483663]
[1730084691274,0.010709,67899.0,67898.0,0.6767431]
[1730084691495,0.010709,67899.0,67898.0,0.58483663]
[1730084691928,0.010709,67899.0,67898.0,0.47986875]
[1730084692158,0.010709,67899.0,67898.0,0.57177522]
[1730084692607,0.010709,67899.0,67898.0,0.56877522]
[1730084693039,0.010709,67899.0,67898.0,0.57077522]
[1730084693306,0.010709,67899.0,67898.0,0.56877522]
[1730084693536,0.010709,67899.0,67898.0,0.57077522]
[1730084693784,0.010709,67899.0,67898.0,0.57177522]
[1730084694463,0.010709,67899.0,67898.0,0.57077522]
[1730084694665,0.010709,67899.0,67898.0,0.61328928]
[1730084694801,0.010709,67899.0,67898.0,0.61128928]
[1730084695001,0.010709,67899.0,67898.0,0.61228928]
[1730084695209,0.010709,67899.0,67898.0,0.61428928]
[1730084695413,0.010709,67899.0,67898.0,0.61128928]
[1730084695619,0.010709,67899.0,67898.0,0.61328928]
[1730084695906,0.010709,67899.0,67898.0,0.61528928]
[1730084696113,0.010709,67899.0,67898.0,0.61328928]
[1730084697931,0.010709,67899.0,67898.0,0.61528928]
[1730084698151,0.010709,67899.0,67898.0,0.61328928]
[1730084698583,0.010709,67899.0,67898.0,0.65901763]
[1730084698940,0.010709,67899.0,67898.0,0.66101763]
[1730084699143,0.010709,67899.0,67898.0,0.65901763]
[1730084699727,0.106609,67899.0,67898.0,0.65901763]
[1730084700342,0.106609,67899.0,67898.0,0.65801763]
[1730084700543,0.010709,67899.0,67898.0,0.66001763]
[1730084700751,0.010709,67899.0,67898.0,0.66101763]
[1730084700979,0.010709,67899.0,67898.0,0.65901763]
[1730084701203,0.010709,67899.0,67898.0,0.66001763]
[1730084701428,0.010709,67899.0,67898.0,0.65801763]
[1730084701635,0.010709,67899.0,67898.0,0.65601763]
[1730084701843,0.010709,67899.0,67898.0,0.65801763]
[1730084702114,0.010709,67899.0,67898.0,0.65701763]
[1730084702554,0.010709,67899.0,67898.0,0.65901763]
[1730084702773,0.010709,67899.0,67898.0,0.65701763]
[1730084703903,0.010709,67899.0,67898.0,0.5075971]
[1730084704092,0.087309,67899.0,67898.0,0.43886875]
[1730084704334,0.087309,67899.0,67898.0,0.44186875]
[1730084704506,0.087309,67899.0,67898.0,0.43986875]
[1730084704913,0.087309,67899.0,67898.0,0.44086875]
[1730084705120,0.087309,67899.0,67898.0,0.43986875]
[1730084705319,0.087309,67899.0,67898.0,0.46286875]
[1730084705489,0.087309,67899.0,67898.0,0.46486875]
[1730084705695,0.087309,67899.0,67898.0,0.68371823]
[1730084706063,0.087309,67899.0,67898.0,0.46386875]
[1730084707130,0.087309,67899.0,67898.0,0.46486875]
[1730084707780,0.087309,67899.0,67898.0,0.46386875]
[1730084708212,0.087309,67899.0,67898.0,0.46286875]
[1730084708708,0.087309,67899.0,67898.0,0.46386875]
[1730084708920,0.087309,67899.0,67898.0,0.46486875]
[1730084709574,0.087309,67899.0,67898.0,0.50873745]
[1730084710646,0.087309,67899.0,67898.0,0.46486875]
[1730084711515,0.087309,67899.0,67898.0,0.5306718]
[1730084713325,0.087309,67899.0,67898.0,0.692907]
[1730084713533,0.087309,67899.0,67898.0,0.5306718]
[1730084714606,0.087309,67899.0,67898.0,0.62261215]
[1730084715059,0.087309,67899.0,67898.0,0.5602218]
[1730084715254,0.087309,67899.0,67898.0,0.46486875]
[1730084715483,0.179009,67899.0,67898.0,0.44186875]
[1730084715721,0.179009,67899.0,67898.0,0.18636494]
[1730084715935,0.27094935,67899.0,67898.0,0.02908594]
[1730084716177,0.27094935,67899.0,67898.0,0.02808594]
[1730084716178,0.41822635,67899.0,67898.0,0.02808594]
[1730084716412,0.326286,67899.0,67898.0,0.02808594]
[1730084716633,0.326286,67899.0,67898.0,0.02908594]
[1730084716857,0.326286,67899.0,67898.0,0.02708594]
[1730084717085,0.326286,67899.0,67898.0,0.02808594]
[1730084717328,0.187009,67899.0,67898.0,0.02708594]
[1730084717783,0.326286,67899.0,67898.0,0.02708594]
[1730084718009,0.337286,67899.0,67898.0,0.02808594]
[1730084718470,0.190009,67899.0,67898.0,0.02808594]
[1730084718947,0.190009,67899.0,67898.0,0.17536494]
[1730084721356,0.190009,67899.0,67898.0,0.02808594]
[1730084721575,0.190009,67899.0,67898.0,0.17536494]
[1730084721803,0.190009,67899.0,67898.0,0.02808594]
[1730084722021,0.190009,67899.0,67898.0,0.17536494]
[1730084723741,0.190009,67899.0,67898.0,0.02808594]
[1730084727926,0.190009,67899.0,67898.0,0.17536494]
[1730084728537,0.190009,67899.0,67898.0,0.33086875]
[1730084729622,0.179009,67899.0,67898.0,0.32986875]
[1730084729830,0.179009,67899.0,67898.0,0.32886875]
[1730084730244,0.179009,67899.0,67898.0,0.33086875]
[1730084730467,0.17827261,67899.0,67898.0,0.32886875]
[1730084730866,0.18127261,67899.0,67898.0,0.32886875]
[1730084732229,0.18324492,67899.0,67898.0,0.32886875]
[1730084732605,0.18127261,67899.0,67898.0,0.32886875]
[1730084733389,0.18324476,67899.0,67898.0,0.32886875]
[1730084733593,0.18127261,67899.0,67898.0,0.32886875]
[1730084734006,0.18324476,67899.0,67898.0,0.32886875]
[1730084734674,0.18127261,67899.0,67898.0,0.33051275]
[1730084734941,0.18324484,67899.0,67898.0,0.33051275]
[1730084736353,0.18127261,67899.0,67898.0,0.33051275]
[1730084736862,0.18324471,67899.0,67898.0,0.33051275]
[1730084737063,0.18127261,67899.0,67898.0,0.33051275]
[1730084737263,0.18324465,67899.0,67898.0,0.33051275]
[1730084739183,0.08957261,67899.0,67898.0,0.33051275]
[1730084739618,0.01297261,67899.0,67898.0,0.35851275]
[1730084739824,0.01297261,67899.0,67898.0,0.36351275]